lending/lending_fUSD_20240112
["ID","MTS","AMOUNT","RATE_DAILY","PERIOD"]
[311361761,1705067527380,-753.76,0.00025874,2]
[311361762,1705067527390,-500.0,0.00025874,2]
[311361763,1705067527400,-500.0,0.00025874,2]
[311361764,1705067527410,-568.06,0.00025874,2]
[311361765,1705067527420,-500.0,0.00025874,2]
[311361766,1705067527430,-500.0,0.00025874,2]
[311361767,1705067527441,-806.29,0.00025874,2]
[311361768,1705067527452,-500.0,0.00025874,2]
[311361769,1705067527463,-500.0,0.00025874,2]
[311361770,1705067527473,-500.0,0.00025874,2]
[311361771,1705067527483,-500.0,0.00025874,2]
[311361772,1705067527494,-222.21,0.00025874,2]
[311361773,1705067527505,-848.08,0.00025874,2]
[311361774,1705067527515,-977.29,0.00025874,2]
[311361775,1705067527525,-500.0,0.00025874,2]
[311361776,1705067527536,-500.0,0.00025874,2]
[311361777,1705067527547,-516.56,0.00025874,2]
[311361778,1705067527557,-764.31,0.00025874,2]
[311361779,1705067527568,-555.48,0.00025874,2]
[311361780,1705067527578,-675.05,0.00025874,2]
[311361781,1705067527589,-500.0,0.00025874,2]
[311361782,1705067527599,-500.0,0.00025874,2]
[311361783,1705067527610,-500.0,0.00025874,2]
[311361784,1705067527619,-696.67,0.00025874,2]
[311361785,1705067527630,-549.27,0.00025874,2]
[311361786,1705067527639,-537.5,0.00025874,2]
[311361787,1705067527650,-794.27,0.00025874,2]
[311361788,1705067527660,-1478.94,0.00025874,2]
[311361789,1705067527670,-2259.65,0.00025874,2]
[311361790,1705067527681,-592.72,0.00025874,2]
[311361791,1705067527691,-500.0,0.00025874,2]
[311361792,1705067527702,-508.59,0.00025874,2]
[311361793,1705067527712,-1082.32,0.00025874,2]
[311361794,1705067527722,-613.36,0.00025874,2]
[311361795,1705067527732,-5818.98,0.00025874,2]
[311361796,1705067527742,-500.0,0.00025874,2]
[311361797,1705067527752,-500.0,0.00025874,2]
[311361798,1705067527761,-500.0,0.00025874,2]
[311361799,1705067527771,-500.0,0.00025874,2]
[311361800,1705067527782,-560.75,0.00025874,2]
[311361801,1705067527792,-501.17,0.00025874,2]
[311361802,1705067527802,-500.0,0.00025874,2]
[311361803,1705067527812,-941.07,0.00025874,2]
[311361804,1705067527824,-568.7,0.00025874,2]
[311361805,1705067527834,-500.0,0.00025874,2]
[311361806,1705067527845,-610.82,0.00025874,2]
[311361807,1705067527855,-500.0,0.00025874,2]
[311361808,1705067527865,-2025.81,0.00025874,2]
[311361809,1705067527875,-627.28,0.00025874,2]
[311361810,1705067527885,-793.23,0.00025874,2]
[311361811,1705067527895,-500.0,0.00025874,2]
[311361812,1705067527905,-500.0,0.00025874,2]
[311361813,1705067527915,-500.0,0.00025874,2]
[311361814,1705067527926,-1268.72,0.00025874,2]
[311361815,1705067527937,-406.90569403,0.00025874,2]
[311361816,1705067527948,-3058.91,0.00025874,2]
[311361817,1705067527959,-500.0,0.00025874,2]
[311361818,1705067527970,-645.36,0.00025874,2]
[311361819,1705067527981,-500.0,0.00025874,2]
[311361820,1705067527992,-594.49,0.00025874,2]
[311361821,1705067528003,-500.0,0.00025874,2]
[311361822,1705067528014,-523.76,0.00025874,2]
[311361823,1705067528025,-967.54,0.00025874,2]
[311361824,1705067528036,-500.0,0.00025874,2]
[311361825,1705067528047,-698.09,0.00025874,2]
[311361826,1705067528058,-1774.52,0.00025874,2]
[311361827,1705067528072,-500.0,0.00025874,2]
[311361828,1705067528084,-500.0,0.00025874,2]
[311361829,1705067528094,-672.72,0.00025874,2]
[311361830,1705067528104,-1366.67,0.00025874,2]
[311361831,1705067528115,-640.24,0.00025874,2]
[311361832,1705067528125,-650.29,0.00025874,2]
[311361833,1705067528136,-1109.5,0.00025874,2]
[311361834,1705067528146,-653.12,0.00025874,2]
[311361835,1705067528156,-2402.79,0.00025874,2]
[311361836,1705067528166,-500.0,0.00025874,2]
[311361837,1705067528179,-682.08,0.00025874,2]
[311361838,1705067528189,-2173.55,0.00025874,2]
[311361839,1705067528198,-604.31,0.00025874,2]
[311361840,1705067528209,-1581.39,0.00025874,2]
[311361841,1705067528219,-500.0,0.00025874,2]
[311361842,1705067528230,-1124.99,0.00025874,2]
[311361843,1705067528240,-500.0,0.00025874,2]
[311361844,1705067528250,-500.0,0.00025874,2]
[311361845,1705067528260,-619.21,0.00025874,2]
[311361846,1705067528271,-1172.6,0.00025874,2]
[311361847,1705067528280,-843.5,0.00025874,2]
[311361848,1705067528290,-752.62,0.00025874,2]
[311361849,1705067528301,-500.0,0.00025874,2]
[311361850,1705067528311,-613.44,0.00025874,2]
[311361851,1705067528323,-1338.76,0.00025874,2]
[311361852,1705067528333,-570.42,0.00025874,2]
[311361853,1705067528343,-506.47,0.00025874,2]
[311361854,1705067528353,-2558.46,0.00025874,2]
[311361855,1705067528363,-500.0,0.00025874,2]
[311361856,1705067528373,-778.89,0.00025874,2]
[311361857,1705067528383,-500.0,0.00025874,2]
[311361858,1705067528394,-608.12,0.00025874,2]
[311361859,1705067528404,-761.66,0.00025874,2]
[311361860,1705067528414,-500.0,0.00025874,2]
[311361861,1705067528424,-500.0,0.00025874,2]
[311361862,1705067528433,-606.09,0.00025874,2]
[311361863,1705067528444,-2321.31,0.00025874,2]
[311361864,1705067528457,-503.85,0.00025874,2]
[311361865,1705067528468,-792.73,0.00025874,2]
[311361866,1705067528478,-505.57,0.00025874,2]
[311361867,1705067528490,-500.0,0.00025874,2]
[311361868,1705067528499,-500.0,0.00025874,2]
[311361869,1705067528509,-1855.62,0.00025874,2]
[311361870,1705067528518,-986.73,0.00025874,2]
[311361871,1705067528528,-500.0,0.00025874,2]
[311361872,1705067528538,-544.3,0.00025874,2]
[311361873,1705067528548,-500.0,0.00025874,2]
[311361874,1705067528557,-922.23,0.00025874,2]
[311361875,1705067528569,-855.09,0.00025874,2]
[311361876,1705067528580,-1739.46,0.00025874,2]
[311361877,1705067528590,-539.44,0.00025874,2]
[311361878,1705067528600,-500.0,0.00025874,2]
[311361879,1705067528610,-628.22,0.00025874,2]
[311361880,1705067528620,-564.76,0.00025874,2]
[311361881,1705067528629,-500.0,0.00025874,2]
[311361882,1705067528639,-500.0,0.00025874,2]
[311361883,1705067528649,-500.0,0.00025874,2]
[311361884,1705067528659,-5795.35,0.00025874,2]
[311361885,1705067528668,-500.0,0.00025874,2]
[311361886,1705067528678,-500.0,0.00025874,2]
[311361887,1705067528687,-518.54,0.00025874,2]
[311361888,1705067528697,-577.35,0.00025874,2]
[311361889,1705067528708,-506.82,0.00025875,2]
[311361890,1705067528718,-898.46,0.00025875,2]
[311361891,1705067528925,-689.65,0.00025875,2]
[311361892,1705067528948,-689.5,0.00025875,2]
[311361893,1705067528958,-544.38,0.00025875,2]
[311361894,1705067528967,-517.93,0.00025875,2]
[311361895,1705067528977,-500.0,0.00025875,2]
[311361896,1705067528986,-603.88,0.00025875,2]
[311361897,1705067528995,-807.14,0.00025875,2]
[311361898,1705067529005,-500.0,0.00025875,2]
[311361899,1705067529015,-763.57,0.00025875,2]
[311361900,1705067529024,-500.0,0.00025875,2]
[311361901,1705067529034,-881.83,0.00025875,2]
[311361902,1705067529043,-500.0,0.00025875,2]
[311361903,1705067529052,-547.66,0.00025875,2]
[311361904,1705067529061,-717.02,0.00025875,2]
[311361905,1705067529072,-500.0,0.00025875,2]
[311361906,1705067529082,-500.0,0.00025875,2]
[311361907,1705067529091,-588.39,0.00025875,2]
[311361908,1705067529101,-500.0,0.00025877,2]
[311361909,1705067529111,-150.64,0.00025877,2]
[311361910,1705067529120,-160.63,0.0002592,2]
[311361911,1705067529130,-150.0,0.00026079,2]
[311361912,1705067529139,-500.0,0.00026147,2]
[311361913,1705067529149,-328.24,0.00026147,2]
[311361914,1705067529159,-194.8,0.00026147,2]
[311361915,1705067529170,-500.0,0.00026147,2]
[311361916,1705067529182,-500.0,0.00026147,2]
[311361917,1705067529192,-500.0,0.00026147,2]
[311361918,1705067529202,-505.4,0.00026147,2]
[311361919,1705067529213,-1250.65,0.00026147,2]
[311361920,1705067529223,-500.0,0.00026147,2]
[311361921,1705067529233,-500.0,0.00026147,2]
[311361922,1705067529244,-7981.48,0.00026147,2]
[311361923,1705067529255,-535.31,0.00026147,2]
[311361924,1705067529265,-1261.36,0.00026147,2]
[311361925,1705067529275,-8984.16,0.00026147,2]
[311361926,1705067529285,-1671.94,0.00026147,2]
[311361927,1705067529295,-3195.18,0.00026147,2]
[311361928,1705067529305,-12299.66,0.00026147,2]
[311361929,1705067529317,-1110.57,0.00026147,2]
[311361930,1705067529328,-630.64,0.00026147,2]
[311361931,1705067529338,-3123.71,0.00026147,2]
[311361932,1705067529348,-500.0,0.00026147,2]
[311361933,1705067529358,-882.43,0.00026147,2]
[311361934,1705067529370,-2779.34,0.00026147,2]
[311361935,1705067529380,-500.0,0.00026147,2]
[311361936,1705067529390,-941.84,0.00026147,2]
[311361937,1705067529400,-703.36,0.00026147,2]
[311361938,1705067529410,-580.21,0.00026147,2]
[311361939,1705067529420,-22278.0,0.00026147,2]
[311361940,1705067529430,-2896.08,0.00026147,2]
[311361941,1705067529440,-1033.16,0.00026147,2]
[311361942,1705067529451,-2697.74,0.00026147,2]
[311361943,1705067529461,-500.0,0.00026147,2]
[311361944,1705067529472,-1239.07,0.00026147,2]
[311361945,1705067529482,-1299.72,0.00026147,2]
[311361946,1705067529492,-994.29,0.00026147,2]
[311361947,1705067529502,-500.0,0.00026147,2]
[311361948,1705067529512,-508.66,0.00026147,2]
[311361949,1705067529522,-6520.81,0.00026147,2]
[311361950,1705067529532,-1237.49,0.00026147,2]
[311361951,1705067529543,-720.97,0.00026147,2]
[311361952,1705067529553,-4021.3,0.00026147,2]
[311361953,1705067529563,-500.0,0.00026147,2]
[311361954,1705067529574,-1358.89,0.00026147,2]
[311361955,1705067529584,-2605.83,0.00026147,2]
[311361956,1705067529593,-556.6,0.00026147,2]
[311361957,1705067529603,-500.0,0.00026147,2]
[311361958,1705067529613,-533.68,0.00026147,2]
[311361959,1705067529624,-519.89,0.00026147,2]
[311361960,1705067529633,-1356.18,0.00026147,2]
[311361961,1705067529643,-2784.68,0.00026147,2]
[311361962,1705067529653,-709.85,0.00026147,2]
[311361963,1705067529664,-500.0,0.00026147,2]
[311361964,1705067529674,-974.42,0.00026147,2]
[311361965,1705067529685,-2294.01,0.00026147,2]
[311361966,1705067529695,-1586.88,0.00026147,2]
[311361967,1705067529705,-1607.34,0.00026147,2]
[311361968,1705067529715,-500.0,0.00026147,2]
[311361969,1705067529725,-892.72,0.00026147,2]
[311361970,1705067529736,-1286.7,0.00026147,2]
[311361971,1705067529746,-500.0,0.00026147,2]
[311361972,1705067529756,-563.27,0.00026147,2]
[311361973,1705067529766,-834.9,0.00026147,2]
[311361974,1705067529776,-1002.65,0.00026147,2]
[311361975,1705067529786,-500.0,0.00026147,2]
[311361976,1705067529796,-13676.69,0.00026147,2]
[311361977,1705067529807,-1317.28,0.00026147,2]
[311361978,1705067529817,-345.88,0.00026147,2]
[311361979,1705067529827,-500.0,0.00026147,2]
[311361980,1705067529836,-1642.76,0.00026147,2]
[311361981,1705067529846,-601.82,0.00026147,2]
[311361982,1705067529856,-500.0,0.00026147,2]
[311361983,1705067529867,-5698.97,0.00026147,2]
[311361984,1705067529878,-1051.05,0.00026147,2]
[311361985,1705067529887,-852.82,0.00026147,2]
[311361986,1705067529896,-577.98,0.00026147,2]
[311361987,1705067529906,-697.59,0.00026147,2]
[311361988,1705067529916,-1233.03,0.00026147,2]
[311361989,1705067529926,-2538.76,0.00026147,2]
[311361990,1705067529936,-1405.14,0.00026147,2]
[311361991,1705067529945,-673.52,0.00026147,2]
[311361992,1705067529955,-2213.37,0.00026147,2]
[311361993,1705067529965,-293.44,0.00026147,2]
[311361994,1705067529975,-14904.63,0.00026147,2]
[311361995,1705067529986,-1129.13,0.00026147,2]
[311361996,1705067529996,-1026.68,0.00026147,2]
[311361997,1705067530006,-3836.53,0.00026147,2]
[311361998,1705067530018,-848.03,0.00026147,2]
[311361999,1705067530028,-717.68,0.00026147,2]
[311362000,1705067530038,-500.0,0.00026147,2]
[311362001,1705067530048,-1579.12,0.00026147,2]
[311362002,1705067530057,-1016.89,0.00026147,2]
[311362003,1705067530066,-1273.06,0.00026147,2]
[311362004,1705067530076,-1990.06,0.00026147,2]
[311362005,1705067530085,-642.71,0.00026147,2]
[311362006,1705067530095,-1962.61,0.00026147,2]
[311362007,1705067530104,-3858.89,0.00026147,2]
[311362008,1705067530114,-1731.39,0.00026147,2]
[311362009,1705067530125,-830.92,0.00026147,2]
[311362010,1705067530135,-1448.83,0.00026147,2]
[311362011,1705067530145,-899.04,0.00026147,2]
[311362012,1705067530154,-673.69,0.00026147,2]
[311362013,1705067530165,-699.58,0.00026147,2]
[311362014,1705067530176,-4923.06,0.00026147,2]
[311362015,1705067530188,-2940.73,0.00026147,2]
[311362016,1705067530200,-2683.93,0.00026147,2]
[311362017,1705067530210,-660.73,0.00026147,2]
[311362018,1705067530220,-1814.82,0.00026147,2]
[311362019,1705067530231,-1795.65,0.00026147,2]
[311362020,1705067530241,-500.0,0.00026147,2]
[311362021,1705067530252,-500.0,0.00026147,2]
[311362022,1705067530262,-788.12,0.00026147,2]
[311362023,1705067530272,-2878.51,0.00026147,2]
[311362024,1705067530282,-1029.85,0.00026147,2]
[311362025,1705067530293,-500.0,0.00026148,2]
[311362026,1705067530303,-183.6,0.00026148,2]
[311362027,1705067530313,-500.0,0.00026148,2]
[311362028,1705067530324,-500.0,0.00026148,2]
[311362029,1705067530336,-500.0,0.00026148,2]
[311362030,1705067530345,-500.0,0.00026148,2]
[311362031,1705067530355,-500.0,0.00026148,2]
[311362032,1705067530364,-500.0,0.00026148,2]
[311362033,1705067530374,-500.0,0.00026148,2]
[311362034,1705067530384,-532.55,0.00026148,2]
[311362035,1705067530394,-571.03,0.00026148,2]
[311362036,1705067530403,-500.0,0.00026148,2]
[311362037,1705067530414,-500.0,0.00026148,2]
[311362038,1705067530424,-500.0,0.00026148,2]
[311362039,1705067530434,-500.0,0.00026148,2]
[311362040,1705067530444,-617.06,0.00026148,2]
[311362041,1705067530454,-159.36,0.00026148,2]
[311362042,1705067530464,-500.03,0.00026148,2]
[311362043,1705067530474,-900.49,0.00026148,2]
[311362044,1705067530484,-500.0,0.00026148,2]
[311362045,1705067530494,-500.0,0.00026148,2]
[311362046,1705067530504,-580.22,0.00026148,2]
[311362047,1705067530514,-500.0,0.00026148,2]
[311362048,1705067530524,-500.0,0.00026148,2]
[311362049,1705067530534,-500.0,0.00026148,2]
[311362050,1705067530543,-500.0,0.00026148,2]
[311362051,1705067530552,-500.0,0.00026148,2]
[311362052,1705067530562,-500.0,0.00026148,2]
[311362053,1705067530573,-500.0,0.00026148,2]
[311362054,1705067530583,-500.0,0.00026148,2]
[311362055,1705067530593,-988.76,0.00026148,2]
[311362056,1705067530602,-500.0,0.00026148,2]
[311362057,1705067530612,-500.0,0.00026148,2]
[311362058,1705067530622,-536.8,0.00026148,2]
[311362059,1705067530631,-500.0,0.00026148,2]
[311362060,1705067530640,-676.74,0.00026148,2]
[311362061,1705067530650,-594.36,0.00026148,2]
[311362062,1705067530660,-500.0,0.00026148,2]
[311362063,1705067530669,-500.0,0.00026148,2]
[311362064,1705067530679,-500.0,0.00026148,2]
[311362065,1705067530689,-572.67,0.00026148,2]
[311362066,1705067530699,-500.0,0.00026148,2]
[311362067,1705067530708,-543.4,0.00026148,2]
[311362068,1705067530718,-500.0,0.00026148,2]
[311362069,1705067530727,-500.0,0.00026148,2]
[311362070,1705067530737,-686.86,0.00026148,2]
[311362071,1705067530748,-500.0,0.00026148,2]
[311362072,1705067530758,-513.03,0.00026148,2]
[311362073,1705067530769,-500.0,0.00026148,2]
[311362074,1705067530779,-717.1,0.00026148,2]
[311362075,1705067530789,-915.79,0.00026148,2]
[311362076,1705067530798,-628.12,0.00026148,2]
[311362077,1705067530808,-578.39,0.00026148,2]
[311362078,1705067530819,-865.61,0.00026148,2]
[311362079,1705067530829,-500.0,0.00026148,2]
[311362080,1705067530838,-504.98,0.00026148,2]
[311362081,1705067530848,-785.43,0.00026148,2]
[311362082,1705067530858,-500.0,0.00026148,2]
[311362083,1705067530898,-500.0,0.00026148,2]
[311362084,1705067530907,-500.0,0.00026148,2]
[311362085,1705067530916,-500.0,0.00026148,2]
[311362086,1705067530926,-802.88,0.00026148,2]
[311362087,1705067530935,-592.6,0.00026148,2]
[311362088,1705067530945,-1046.21,0.00026148,2]
[311362089,1705067530956,-1019.63,0.00026148,2]
[311362090,1705067530966,-501.58,0.00026148,2]
[311362091,1705067530974,-500.0,0.00026148,2]
[311362092,1705067530984,-1762.58,0.00026148,2]
[311362093,1705067530994,-500.0,0.00026148,2]
[311362094,1705067531003,-742.28,0.00026148,2]
[311362095,1705067531013,-500.0,0.00026148,2]
[311362096,1705067531023,-551.57,0.00026148,2]
[311362097,1705067531033,-544.63,0.00026148,2]
[311362098,1705067531042,-500.0,0.00026148,2]
[311362099,1705067531051,-500.0,0.00026148,2]
[311362100,1705067531062,-511.99,0.00026148,2]
[311362101,1705067531073,-500.0,0.00026148,2]
[311362102,1705067531082,-500.0,0.00026148,2]
[311362103,1705067531091,-513.65,0.00026148,2]
[311362104,1705067531102,-500.0,0.00026148,2]
[311362105,1705067531111,-500.0,0.00026148,2]
[311362106,1705067531121,-500.0,0.00026148,2]
[311362107,1705067531130,-331.4,0.00026148,2]
[311362108,1705067531139,-683.51,0.00026148,2]
[311362109,1705067531149,-522.55,0.00026148,2]
[311362110,1705067531158,-524.64,0.00026148,2]
[311362111,1705067531167,-924.0,0.00026148,2]
[311362112,1705067531178,-500.0,0.00026148,2]
[311362113,1705067531188,-500.0,0.00026148,2]
[311362114,1705067531199,-677.56,0.00026148,2]
[311362115,1705067531208,-500.0,0.00026148,2]
[311362116,1705067531219,-500.0,0.00026148,2]
[311362117,1705067531228,-500.0,0.00026148,2]
[311362118,1705067531238,-500.0,0.00026148,2]
[311362119,1705067531248,-612.68,0.00026148,2]
[311362120,1705067531257,-500.0,0.00026148,2]
[311362121,1705067531266,-590.15,0.00026148,2]
[311362122,1705067531277,-505.02,0.00026148,2]
[311362123,1705067531287,-500.0,0.00026148,2]
[311362124,1705067531296,-548.99,0.00026148,2]
[311362125,1705067531306,-500.0,0.00026148,2]
[311362126,1705067531315,-543.6,0.00026148,2]
[311362127,1705067531326,-632.89,0.00026148,2]
[311362128,1705067531335,-1092.03,0.00026148,2]
[311362129,1705067531345,-710.83,0.00026148,2]
[311362130,1705067531355,-545.64,0.00026148,2]
[311362131,1705067531364,-500.0,0.00026148,2]
[311362132,1705067531374,-533.57,0.00026148,2]
[311362133,1705067531383,-547.06,0.00026148,2]
[311362134,1705067531392,-1007.67,0.00026148,2]
[311362135,1705067531402,-1191.64,0.00026148,2]
[311362136,1705067531411,-500.0,0.00026148,2]
[311362137,1705067531421,-653.87,0.00026148,2]
[311362138,1705067531431,-578.4,0.00026148,2]
[311362139,1705067531441,-567.05,0.00026148,2]
[311362140,1705067531450,-616.57,0.00026148,2]
[311362141,1705067531460,-920.08,0.00026148,2]
[311362142,1705067531470,-500.0,0.00026148,2]
[311362143,1705067531485,-792.43,0.00026148,2]
[311362144,1705067531495,-717.68,0.00026148,2]
[311362145,1705067531505,-615.74,0.00026148,2]
[311362146,1705067531514,-549.71,0.00026148,2]
[311362147,1705067531524,-500.0,0.00026148,2]
[311362148,1705067531534,-533.96,0.00026148,2]
[311362149,1705067531543,-545.26,0.00026148,2]
[311362150,1705067531553,-526.4,0.00026148,2]
[311362151,1705067531563,-753.76,0.00026148,2]
[311362152,1705067531574,-500.0,0.00026148,2]
[311362153,1705067531583,-500.0,0.00026148,2]
[311362154,1705067531593,-568.06,0.00026148,2]
[311362155,1705067531603,-500.0,0.00026148,2]
[311362156,1705067531612,-500.0,0.00026148,2]
[311362157,1705067531621,-806.29,0.00026148,2]
[311362158,1705067531631,-500.0,0.00026148,2]
[311362159,1705067531640,-500.0,0.00026148,2]
[311362160,1705067531650,-500.0,0.00026148,2]
[311362161,1705067531659,-500.0,0.00026148,2]
[311362162,1705067531669,-222.21,0.00026148,2]
[311362163,1705067531679,-848.08,0.00026148,2]
[311362164,1705067531689,-977.29,0.00026148,2]
[311362165,1705067531699,-500.0,0.00026148,2]
[311362166,1705067531709,-500.0,0.00026148,2]
[311362167,1705067531719,-516.56,0.00026148,2]
[311362168,1705067531728,-764.31,0.00026148,2]
[311362169,1705067531738,-555.48,0.00026148,2]
[311362170,1705067531747,-675.05,0.00026148,2]
[311362171,1705067531756,-500.0,0.00026148,2]
[311362172,1705067531766,-500.0,0.00026148,2]
[311362173,1705067531775,-500.0,0.00026148,2]
[311362174,1705067531784,-696.67,0.00026148,2]
[311362175,1705067531794,-549.27,0.00026148,2]
[311362176,1705067531803,-537.5,0.00026148,2]
[311362177,1705067531813,-794.27,0.00026148,2]
[311362178,1705067531826,-1478.94,0.00026148,2]
[311362179,1705067531835,-2259.65,0.00026148,2]
[311362180,1705067531845,-592.72,0.00026148,2]
[311362181,1705067531854,-500.0,0.00026148,2]
[311362182,1705067531863,-508.59,0.00026148,2]
[311362183,1705067531872,-1082.32,0.00026148,2]
[311362184,1705067531881,-613.36,0.00026148,2]
[311362185,1705067531890,-5818.98,0.00026148,2]
[311362186,1705067531900,-500.0,0.00026148,2]
[311362187,1705067531909,-500.0,0.00026148,2]
[311362188,1705067531918,-500.0,0.00026148,2]
[311362189,1705067531928,-500.0,0.00026148,2]
[311362190,1705067531937,-560.75,0.00026148,2]
[311362191,1705067531947,-501.17,0.00026148,2]
[311362192,1705067531956,-500.0,0.00026148,2]
[311362193,1705067531965,-941.07,0.00026148,2]
[311362194,1705067531975,-568.7,0.00026148,2]
[311362195,1705067531984,-500.0,0.00026148,2]
[311362196,1705067531994,-610.82,0.00026148,2]
[311362197,1705067532003,-500.0,0.00026148,2]
[311362198,1705067532012,-2025.81,0.00026148,2]
[311362199,1705067532021,-627.28,0.00026148,2]
[311362200,1705067532030,-793.23,0.00026148,2]
[311362201,1705067532039,-500.0,0.00026148,2]
[311362202,1705067532048,-500.0,0.00026148,2]
[311362203,1705067532058,-409.99,0.00026148,2]
[311362204,1705067532068,-1268.72,0.00026148,2]
[311362205,1705067532077,-3058.91,0.00026148,2]
[311362206,1705067532086,-500.0,0.00026148,2]
[311362207,1705067532095,-645.36,0.00026148,2]
[311362208,1705067532104,-500.0,0.00026148,2]
[311362209,1705067532113,-594.49,0.00026148,2]
[311362210,1705067532123,-500.0,0.00026148,2]
[311362211,1705067532133,-523.76,0.00026148,2]
[311362212,1705067532143,-967.54,0.00026148,2]
[311362213,1705067532151,-500.0,0.00026148,2]
[311362214,1705067532161,-698.09,0.00026148,2]
[311362215,1705067532170,-1774.52,0.00026148,2]
[311362216,1705067532179,-500.0,0.00026148,2]
[311362217,1705067532189,-500.0,0.00026148,2]
[311362218,1705067532198,-672.72,0.00026148,2]
[311362219,1705067532207,-1366.67,0.00026148,2]
[311362220,1705067532216,-640.24,0.00026148,2]
[311362221,1705067532226,-650.29,0.00026148,2]
[311362222,1705067532235,-1109.5,0.00026148,2]
[311362223,1705067532244,-653.12,0.00026148,2]
[311362224,1705067532254,-2402.79,0.00026148,2]
[311362225,1705067532463,-500.0,0.00026148,2]
[311362226,1705067532472,-682.08,0.00026148,2]
[311362227,1705067532482,-2173.55,0.00026148,2]
[311362228,1705067532492,-604.31,0.00026148,2]
[311362229,1705067532502,-1581.39,0.00026148,2]
[311362230,1705067532511,-500.0,0.00026148,2]
[311362231,1705067532521,-1124.99,0.00026148,2]
[311362232,1705067532530,-420.99,0.00026148,2]
[311362233,1705067532540,-500.0,0.00026148,2]
[311362234,1705067532550,-292.47525812,0.00026148,2]
[311362235,1705067533144,-457.57,0.00023134,2]
[311362236,1705067533641,-500.0,0.00022585,2]
[311362237,1705067533652,-500.0,0.00022585,2]
[311362238,1705067533662,-500.0,0.00022585,2]
[311362239,1705067533672,-760.1,0.00022586,2]
[311362240,1705067533681,-460.8241821,0.00022859,2]
[311362241,1705067533690,-500.0,0.00022859,2]
[311362242,1705067533699,-500.0,0.00022859,2]
[311362243,1705067533709,-760.1,0.0002286,2]
[311362244,1705067533718,-500.0,0.00023133,2]
[311362245,1705067533727,-1780.95,0.00023134,2]
[311362246,1705067533737,-561.5458179,0.00023134,2]
[311362247,1705067533753,-198.5541821,0.00023134,2]
[311362248,1705067533762,-913.59,0.00023407,2]
[311362249,1705067533772,-2238.52,0.00023408,2]
[311362250,1705067533781,-760.1,0.00023408,2]
[311362251,1705067533790,-913.59,0.00023681,2]
[311362252,1705067533800,-2238.52,0.00023682,2]
[311362253,1705067533809,-760.1,0.00023682,2]
[311362254,1705067533819,-913.59,0.00023955,2]
[311362255,1705067533829,-2238.52,0.00023956,2]
[311362256,1705067533838,-760.1,0.00023956,2]
[311362257,1705067533847,-913.59,0.00024229,2]
[311362258,1705067533856,-2238.52,0.0002423,2]
[311362259,1705067533868,-913.59,0.00024503,2]
[311362260,1705067533877,-2238.52,0.00024504,2]